fUSD/lending_fUSD_20250110
["ID","MTS","AMOUNT","RATE_DAILY","PERIOD"]
[348369137,1736473839503,-750.91,9.835e-05,2]
[348369139,1736473839512,-500.0,9.835e-05,2]
[348369140,1736473839521,-500.0,9.835e-05,2]
[348369142,1736473839530,-865.95,9.835e-05,2]
[348369144,1736473839539,-505.35047611,9.835e-05,2]
[348369146,1736473839548,-503.78987771,9.835e-05,2]
[348369147,1736473839557,-228.96379777,9.835e-05,2]
[348369149,1736473839566,-500.0,9.835e-05,2]
[348369151,1736473839575,-500.0,9.835e-05,2]
[348369153,1736473839584,-454.24895924,9.835e-05,2]
[348369154,1736473839593,-511.77615552,9.835e-05,2]
[348369156,1736473839602,-507.12753275,9.835e-05,2]
[348369158,1736473839611,-500.0,9.835e-05,2]
[348369160,1736473839621,-532.95,9.835e-05,2]
[348369162,1736473839630,-919.73,9.835e-05,2]
[348369164,1736473839639,-861.35,9.835e-05,2]
[348369165,1736473839648,-505.17347383,9.835e-05,2]
[348369167,1736473839657,-987.48,9.835e-05,2]
[348369169,1736473839667,-500.0,9.835e-05,2]
[348369171,1736473839676,-500.0,9.835e-05,2]
[348369173,1736473839685,-1193.5,9.835e-05,2]
[348369174,1736473839695,-506.35036507,9.835e-05,2]
[348369175,1736473839703,-500.0,9.835e-05,2]
[348369176,1736473839712,-507.60103551,9.835e-05,2]
[348369177,1736473839721,-522.16,9.835e-05,2]
[348369178,1736473839730,-506.76787375,9.835e-05,2]
[348369179,1736473839739,-500.0,9.835e-05,2]
[348369180,1736473839748,-500.0,9.835e-05,2]
[348369181,1736473839757,-500.0,9.835e-05,2]
[348369182,1736473839766,-500.0,9.835e-05,2]
[348369183,1736473839775,-500.0,9.835e-05,2]
[348369185,1736473839784,-500.0,9.835e-05,2]
[348369186,1736473839793,-500.0,9.835e-05,2]
[348369187,1736473839802,-686.25,9.835e-05,2]
[348369188,1736473839811,-500.0,9.835e-05,2]
[348369190,1736473839820,-540.19,9.835e-05,2]
[348369192,1736473839833,-500.0,9.835e-05,2]
[348369195,1736473839842,-633.4088516,9.835e-05,2]
[348369197,1736473839851,-500.0,9.835e-05,2]
[348369199,1736473839861,-500.0,9.835e-05,2]
[348369201,1736473839871,-500.0,9.835e-05,2]
[348369203,1736473839881,-500.0,9.835e-05,2]
[348369205,1736473839890,-885.1,9.835e-05,2]
[348369207,1736473839901,-500.0,9.835e-05,2]
[348369209,1736473839912,-592.73,9.835e-05,2]
[348369211,1736473839921,-685.2,9.835e-05,2]
[348369213,1736473839930,-719.88,9.835e-05,2]
[348369215,1736473839940,-500.0,9.835e-05,2]
[348369217,1736473839950,-500.0,9.835e-05,2]
[348369219,1736473839960,-780.15,9.835e-05,2]
[348369221,1736473839969,-678.7,9.835e-05,2]
[348369223,1736473839980,-602.84,9.835e-05,2]
[348369225,1736473839989,-827.65,9.835e-05,2]
[348369227,1736473839999,-688.52,9.835e-05,2]
[348369229,1736473840009,-216.9848,9.898e-05,2]
[348369231,1736473840018,-616.15,9.9e-05,5]
[348369233,1736473840027,-230.80024748,9.966e-05,2]
[348369235,1736473840037,-500.0,9.973e-05,2]
[348369237,1736473840046,-21055.59579135,9.973e-05,2]
[348369239,1736473840056,-21055.59579135,9.98e-05,2]
[348369241,1736473840066,-21055.59579135,9.983e-05,2]
[348369243,1736473840075,-21055.59579135,9.989e-05,2]
[348369245,1736473840086,-21055.59579135,9.994e-05,2]
[348369247,1736473840096,-21055.59579135,9.995e-05,2]
[348369249,1736473840105,-2405.83,9.998e-05,2]
[348369251,1736473840114,-1467.23,9.998e-05,2]
[348369253,1736473840123,-4578.68,9.998e-05,2]
[348369255,1736473840133,-3324.01,9.998e-05,2]
[348369257,1736473840142,-500.0,9.998e-05,2]
[348369259,1736473840151,-1111.7,9.998e-05,2]
[348369261,1736473840161,-3453.7,9.998e-05,2]
[348369263,1736473840170,-500.0,9.998e-05,2]
[348369265,1736473840179,-500.0,9.998e-05,2]
[348369266,1736473840188,-1061.93,9.998e-05,2]
[348369268,1736473840198,-1061.93,9.998e-05,2]
[348369270,1736473840207,-1038.85,9.998e-05,2]
[348369272,1736473840216,-1440.6,9.998e-05,2]
[348369274,1736473840225,-1468.38,9.998e-05,2]
[348369276,1736473840235,-2088.89,9.998e-05,2]
[348369278,1736473840244,-1467.29,9.998e-05,2]
[348369280,1736473840254,-1014.58,9.998e-05,2]
[348369282,1736473840263,-500.0,9.998e-05,2]
[348369284,1736473840272,-559.25,9.998e-05,2]
[348369286,1736473840282,-500.0,9.998e-05,2]
[348369288,1736473840292,-1191.88,9.998e-05,2]
[348369290,1736473840303,-4473.1,9.998e-05,2]
[348369292,1736473840312,-935.05,9.998e-05,2]
[348369294,1736473840321,-635.09,9.998e-05,2]
[348369296,1736473840331,-1507.0,9.998e-05,2]
[348369298,1736473840340,-833.03,9.998e-05,2]
[348369300,1736473840349,-1875.51,9.998e-05,2]
[348369302,1736473840360,-500.0,9.998e-05,2]
[348369304,1736473840369,-1057.5,9.998e-05,2]
[348369306,1736473840379,-500.0,9.998e-05,2]
[348369308,1736473840389,-1638.9,9.998e-05,2]
[348369310,1736473840399,-694.27,9.998e-05,2]
[348369312,1736473840408,-2668.6,9.998e-05,2]
[348369314,1736473840418,-500.0,9.998e-05,2]
[348369316,1736473840427,-2578.78,9.998e-05,2]
[348369318,1736473840437,-500.0,9.998e-05,2]
[348369320,1736473840447,-1469.71,9.998e-05,2]
[348369321,1736473840457,-6841.84,9.998e-05,2]
[348369322,1736473840466,-1754.99,9.998e-05,2]
[348369324,1736473840476,-500.0,9.998e-05,2]
[348369325,1736473840486,-1254.01,9.998e-05,2]
[348369327,1736473840495,-1089.24,9.998e-05,2]
[348369329,1736473840505,-2610.82,9.998e-05,2]
[348369331,1736473840514,-979.46,9.998e-05,2]
[348369333,1736473840523,-1209.38,9.998e-05,2]
[348369334,1736473840532,-1028.08,9.998e-05,2]
[348369335,1736473840542,-2796.63,9.998e-05,2]
[348369336,1736473840551,-500.0,9.998e-05,2]
[348369337,1736473840561,-1134.49,9.998e-05,2]
[348369338,1736473840571,-990.58,9.998e-05,2]
[348369340,1736473840580,-1672.55,9.998e-05,2]
[348369342,1736473840589,-1090.36,9.998e-05,2]
[348369344,1736473840599,-1426.57,9.998e-05,2]
[348369346,1736473840608,-1163.04,9.998e-05,2]
[348369348,1736473840617,-682.48,9.998e-05,2]
[348369350,1736473840626,-1009.87,9.998e-05,2]
[348369351,1736473840635,-500.0,9.998e-05,2]
[348369353,1736473840648,-1997.59,9.998e-05,2]
[348369354,1736473840658,-881.96,9.998e-05,2]
[348369355,1736473840667,-3161.04,9.998e-05,2]
[348369356,1736473840677,-1614.98,9.998e-05,2]
[348369357,1736473840688,-1203.73,9.998e-05,2]
[348369358,1736473840698,-1620.99,9.998e-05,2]
[348369359,1736473840707,-500.0,9.999e-05,2]
[348369360,1736473840716,-255.29977511,9.999e-05,2]
[348369361,1736473840726,-500.0,9.999e-05,2]
[348369362,1736473840736,-195.90722408,9.999e-05,2]
[348369363,1736473840746,-500.0,9.999e-05,2]
[348369364,1736473840756,-800965.05294786,0.0001,2]
[348369365,1736473840777,-2111.93158524,0.0001,2]
[348369366,1736473840790,-4090.01649661,0.0001,2]
[348369367,1736473840802,-920.76715178,0.0001,2]
[348369368,1736473841244,-9165.67651754,0.0001,2]
[348369369,1736473841256,-722.5239344,0.0001,2]
[348369370,1736473841326,-466.62588,0.0001,2]
[348369371,1736473841338,-4941.09052972,0.0001,2]
[348369372,1736473841349,-24848.2513054,0.0001,2]
[348369373,1736473841361,-1300.0,0.0001,2]
[348369374,1736473841372,-15631.02059964,0.0001,2]
[348369375,1736473841384,-31199.9999992,0.0001,2]
[348369376,1736473841396,-511.10987742,0.0001,2]
[348369377,1736473841437,-562.00676926,0.0001,2]
[348369378,1736473841449,-37659.48805827,0.0001,2]
[348369379,1736473841460,-428.28720183,0.0001,2]
[348369380,1736473841471,-134642.64231832,0.0001,2]
[348369381,1736473841483,-4823.27885289,0.0001,2]
[348369382,1736473841495,-23000.0,0.0001,2]
[348369383,1736473841786,-4974.35514103,0.0001,2]
[348369384,1736473841798,-427.20921097,0.0001,2]
[348369385,1736473841809,-27874.2801531,0.0001,2]
[348369386,1736473841820,-529.1999988,0.0001,2]
[348369387,1736473841835,-349.69019323,0.0001,2]
[348369388,1736473841956,-62023.59609106,0.0001,2]
[348369389,1736473842011,-2170.14205106,0.0001,2]
[348369390,1736473842022,-342.41312756,0.0001,2]
[348369391,1736473842033,-509.40486528,0.0001,2]
[348369392,1736473842044,-137896.19052902,0.0001,2]
[348369393,1736473842055,-9085.46180306,0.0001,2]
[348369394,1736473842066,-16012.5,0.0001,2]
[348369395,1736473842168,-2448.40278486,0.0001,2]
[348369399,1736473842864,-495.2572,0.0001,2]
[348369404,1736473843051,-604.0,0.0001,2]
[348369405,1736473843065,-1350.82999943,0.0001,2]
[348369406,1736473843080,-3042.216401,0.0001,2]
[348369407,1736473843237,-618.345,0.0001,2]
[348369409,1736473843250,-3165.53123548,0.0001,2]
[348369410,1736473843262,-84009.89723876,0.0001,2]
[348369411,1736473843273,-336.03651418,0.0001,2]
[348369412,1736473843284,-743.5529996,0.0001,2]
[348369422,1736473845894,-1248.75,9.832e-05,2]
[348369424,1736473845907,-500.0,9.832e-05,2]
[348369425,1736473845917,-500.0,9.834e-05,2]
[348369426,1736473845927,-20745.05112534,0.0001,2]
[348369427,1736473845939,-1680.0,0.0001,2]
[348369429,1736473845952,-10216.47913827,0.0001,2]
[348369436,1736473846082,-3367.09382291,0.0001,2]
[348369437,1736473846094,-1880.38943175,0.0001,2]
[348369438,1736473846105,-5106.55160518,0.0001,2]
[348369439,1736473846118,-432.82035298,0.0001,2]
[348369440,1736473846129,-7163.59288313,0.0001,2]
[348369441,1736473846140,-727.04806406,0.0001,2]
[348369442,1736473846268,-482.5,0.0001,2]
[348369443,1736473846314,-29563.61870955,0.0001,2]
[348369444,1736473846326,-37543.6328268,0.0001,2]
[348369446,1736474114141,136728.023143,5.803e-05,7]
[348369447,1736474238284,-467.87269109,0.00013987,30]
[348369448,1736474238706,-1775.46,0.000143,31]
[348369449,1736474238731,-1775.46,0.000143,31]
[348369450,1736474238755,-1775.46,0.000143,31]
[348369451,1736474238782,-1775.46,0.000143,31]
[348369452,1736474238806,-1775.46,0.000143,31]
[348369453,1736474238830,-1775.46,0.000143,31]
[348369454,1736474238854,-1775.46,0.000143,31]
[348369455,1736474238877,-1775.46,0.000143,31]
[348369456,1736474238901,-1775.46,0.000143,31]
[348369457,1736474238925,-1775.46,0.000143,31]
[348369458,1736474238949,-1775.46,0.000143,31]
[348369459,1736474238974,-1775.46,0.000143,31]
[348369460,1736474239002,-1775.46,0.000143,31]
[348369461,1736474239029,-1775.46,0.000143,31]
[348369462,1736474239054,-1775.46,0.000143,31]
[348369463,1736474239086,-1775.46,0.000143,31]
[348369464,1736474286277,1265.56,8.219e-05,2]
[348369473,1736474839355,-157.73362006,0.00011457,10]
[348369483,1736474886709,-185.0,0.000114,7]
[348369484,1736474906912,-210.0,0.000114,6]
[348369486,1736474926478,-210.0,0.000114,5]
[348369487,1736474949073,-1795.0,0.00012288,7]
[348369494,1736475032224,-1494.81,9.069e-05,2]
[348369495,1736475032234,-1000.0,9.12e-05,2]
[348369496,1736475032244,-250.0,9.12e-05,2]
[348369497,1736475032254,-159.55,9.133e-05,2]
[348369498,1736475032263,-244.54,9.152e-05,2]
[348369499,1736475032273,-149.05943046,9.159e-05,2]
[348369500,1736475032459,-16.26056954,9.159e-05,2]
[348369501,1736475032469,-166.98,9.386e-05,2]
[348369502,1736475032479,-1000.0,9.734e-05,2]
[348369503,1736475032489,-150.0,9.831e-05,2]
[348369504,1736475032499,-3600.4856,9.832e-05,2]
[348369505,1736475032511,-603.67,9.832e-05,2]
[348369506,1736475032521,-500.0,9.832e-05,2]
[348369507,1736475032531,-599.04,9.832e-05,2]
[348369508,1736475032540,-500.0,9.832e-05,2]
[348369509,1736475032551,-273.93754726,9.832e-05,2]
[348369510,1736475032560,-500.0,9.832e-05,2]
[348369511,1736475032570,-500.0,9.832e-05,2]
[348369512,1736475032579,-525.21,9.832e-05,2]
[348369513,1736475032591,-500.0,9.832e-05,2]
[348369514,1736475032602,-500.0,9.832e-05,2]
[348369515,1736475032612,-500.0,9.832e-05,2]
[348369516,1736475032622,-500.0,9.832e-05,2]
[348369517,1736475032632,-522.71,9.832e-05,2]
[348369518,1736475032642,-500.0,9.832e-05,2]
[348369519,1736475032652,-662.64,9.832e-05,2]
[348369520,1736475032662,-500.0,9.832e-05,2]
[348369521,1736475032671,-798.46,9.832e-05,2]
[348369522,1736475032683,-730.07,9.832e-05,2]
[348369523,1736475032692,-500.0,9.832e-05,2]
[348369524,1736475032702,-500.0,9.832e-05,2]
[348369525,1736475032712,-500.0,9.832e-05,2]
[348369526,1736475032722,-687.19,9.832e-05,2]
[348369527,1736475032732,-555.81,9.832e-05,2]
[348369528,1736475032742,-500.0,9.832e-05,2]
[348369529,1736475032752,-680.04,9.832e-05,2]
[348369530,1736475032762,-710.55,9.832e-05,2]
[348369531,1736475032771,-500.0,9.832e-05,2]
[348369532,1736475032781,-500.0,9.832e-05,2]
[348369533,1736475032791,-523.72,9.832e-05,2]
[348369534,1736475032800,-500.0,9.832e-05,2]
[348369535,1736475032810,-500.0,9.832e-05,2]
[348369536,1736475032820,-500.0,9.832e-05,2]
[348369537,1736475032830,-500.0,9.832e-05,2]
[348369538,1736475032841,-500.0,9.832e-05,2]
[348369539,1736475032851,-615.32,9.832e-05,2]
[348369540,1736475032862,-500.0,9.832e-05,2]
[348369541,1736475032873,-500.0,9.832e-05,2]
[348369542,1736475032883,-641.91,9.832e-05,2]
[348369543,1736475032896,-500.0,9.832e-05,2]
[348369544,1736475032906,-856.92,9.832e-05,2]
[348369545,1736475032915,-198.82836676,9.832e-05,2]
[348369546,1736475032926,-564.61,9.832e-05,2]
[348369547,1736475032936,-500.0,9.832e-05,2]
[348369548,1736475032946,-452.72756139,9.832e-05,2]
[348369549,1736475032955,-546.19,9.832e-05,2]
[348369550,1736475032965,-531.58,9.832e-05,2]
[348369551,1736475032975,-902.24,9.832e-05,2]
[348369552,1736475032984,-846.3,9.832e-05,2]
[348369553,1736475032994,-726.36,9.832e-05,2]
[348369554,1736475033003,-1164.6,9.832e-05,2]
[348369555,1736475033013,-432.35678817,9.832e-05,2]
[348369556,1736475033027,-500.0,9.832e-05,2]
[348369557,1736475033037,-521.24,9.832e-05,2]
[348369558,1736475033047,-500.0,9.832e-05,2]
[348369559,1736475033056,-714.74,9.832e-05,2]
[348369560,1736475033065,-500.0,9.832e-05,2]
[348369561,1736475033075,-500.0,9.832e-05,2]
[348369562,1736475033085,-678.49,9.832e-05,2]
[348369563,1736475033095,-518.66,9.832e-05,2]
[348369564,1736475033105,-536.01,9.832e-05,2]
[348369565,1736475033115,-500.0,9.832e-05,2]
[348369566,1736475033125,-500.0,9.832e-05,2]
[348369567,1736475033135,-869.05,9.832e-05,2]
[348369568,1736475033145,-588.86,9.832e-05,2]
[348369569,1736475033154,-1150.96,9.832e-05,2]
[348369570,1736475033163,-677.48,9.832e-05,2]
[348369571,1736475033173,-710.72,9.832e-05,2]
[348369572,1736475033183,-747.86,9.832e-05,2]
[348369573,1736475033193,-500.0,9.832e-05,2]
[348369574,1736475033202,-3512.11,9.832e-05,2]
[348369575,1736475033212,-500.0,9.833e-05,2]
[348369576,1736475033221,-500.0,9.833e-05,2]
[348369577,1736475033231,-368.49081644,9.833e-05,2]
[348369578,1736475033240,-500.0,9.833e-05,2]
[348369579,1736475033250,-506.62760637,9.833e-05,2]
[348369580,1736475033260,-500.0,9.833e-05,2]
[348369581,1736475033269,-500.0,9.833e-05,2]
[348369582,1736475033279,-500.0,9.833e-05,2]
[348369583,1736475033290,-500.0,9.833e-05,2]
[348369584,1736475033300,-500.0,9.833e-05,2]
[348369585,1736475033310,-500.0,9.833e-05,2]
[348369586,1736475033320,-500.0,9.833e-05,2]
[348369587,1736475033330,-504.20393965,9.833e-05,2]
[348369588,1736475033339,-500.0,9.833e-05,2]
[348369589,1736475033349,-500.0,9.833e-05,2]
[348369590,1736475033359,-635.24,9.833e-05,2]
[348369591,1736475033368,-500.0,9.833e-05,2]
[348369592,1736475033378,-500.0,9.833e-05,2]
[348369593,1736475033388,-500.0,9.833e-05,2]
[348369594,1736475033398,-500.0,9.833e-05,2]
[348369595,1736475033408,-500.0,9.833e-05,2]
[348369596,1736475033418,-500.0,9.833e-05,2]
[348369597,1736475033427,-500.0,9.833e-05,2]
[348369598,1736475033438,-217.80122709,9.833e-05,2]
[348369599,1736475033448,-502.56980573,9.833e-05,2]
[348369600,1736475033458,-500.0,9.833e-05,2]
[348369601,1736475033468,-500.0,9.833e-05,2]
[348369602,1736475033478,-500.0,9.833e-05,2]
[348369603,1736475033488,-500.0,9.833e-05,2]
[348369604,1736475033498,-500.0,9.833e-05,2]
[348369605,1736475033511,-500.0,9.833e-05,2]
[348369606,1736475033523,-500.0,9.833e-05,2]
[348369607,1736475033534,-591.35,9.833e-05,2]
[348369608,1736475033544,-516.8959082,9.833e-05,2]
[348369609,1736475033555,-508.02176822,9.833e-05,2]
[348369610,1736475033565,-500.0,9.833e-05,2]
[348369611,1736475033574,-500.0,9.833e-05,2]
[348369612,1736475033584,-500.0,9.833e-05,2]
[348369613,1736475033594,-500.0,9.833e-05,2]
[348369614,1736475033604,-500.0,9.833e-05,2]
[348369615,1736475033613,-500.0,9.833e-05,2]
[348369616,1736475033623,-500.0,9.833e-05,2]
[348369617,1736475033642,-500.0,9.833e-05,2]
[348369618,1736475033653,-507.61482305,9.833e-05,2]
[348369619,1736475033953,-510.94434649,9.833e-05,2]
[348369620,1736475033963,-507.45557772,9.833e-05,2]
[348369621,1736475033974,-500.0,9.833e-05,2]
[348369622,1736475033983,-505.47939823,9.833e-05,2]
[348369623,1736475033993,-500.0,9.833e-05,2]
[348369624,1736475034003,-504.42301847,9.833e-05,2]
[348369625,1736475034013,-500.0,9.833e-05,2]
[348369626,1736475034022,-500.0,9.833e-05,2]
[348369627,1736475034033,-705.88,9.833e-05,2]
[348369628,1736475034047,-500.0,9.833e-05,2]
[348369629,1736475034056,-502.86554226,9.833e-05,2]
[348369630,1736475034066,-503.8026249,9.833e-05,2]
[348369631,1736475034075,-503.45258275,9.833e-05,2]
[348369632,1736475034085,-500.0,9.833e-05,2]
[348369633,1736475034095,-510.3525632,9.833e-05,2]
[348369634,1736475034105,-500.0,9.833e-05,2]
[348369635,1736475034115,-500.0,9.833e-05,2]
[348369636,1736475034125,-500.0,9.833e-05,2]
[348369637,1736475034135,-505.59164104,9.833e-05,2]
[348369638,1736475034145,-503.63032839,9.833e-05,2]
[348369639,1736475034156,-546.87084366,9.833e-05,2]
[348369640,1736475034166,-500.0,9.833e-05,2]
[348369641,1736475034176,-636.74,9.833e-05,2]
[348369642,1736475034187,-506.00932061,9.833e-05,2]
[348369643,1736475034198,-505.37651756,9.833e-05,2]
[348369644,1736475034209,-505.46847882,9.833e-05,2]
[348369645,1736475034218,-500.0,9.833e-05,2]
[348369646,1736475034228,-522.81376589,9.833e-05,2]
[348369647,1736475034237,-500.0,9.833e-05,2]
[348369648,1736475034247,-500.0,9.833e-05,2]
[348369649,1736475034256,-500.0,9.833e-05,2]
[348369650,1736475034267,-518.26694306,9.833e-05,2]
[348369651,1736475034278,-530.16551768,9.833e-05,2]
[348369652,1736475034289,-505.09967303,9.833e-05,2]
[348369653,1736475034299,-503.60778866,9.833e-05,2]
[348369654,1736475034309,-509.60431067,9.833e-05,2]
[348369655,1736475034319,-502.37052831,9.833e-05,2]
[348369656,1736475034328,-512.12623081,9.833e-05,2]
[348369657,1736475034338,-500.0,9.833e-05,2]
[348369658,1736475034348,-500.0,9.833e-05,2]
[348369659,1736475034358,-500.0,9.833e-05,2]
[348369660,1736475034369,-500.0,9.833e-05,2]
[348369661,1736475034378,-504.19791603,9.833e-05,2]
[348369662,1736475034389,-500.0,9.833e-05,2]
[348369663,1736475034399,-500.0,9.833e-05,2]
[348369664,1736475034409,-500.0,9.833e-05,2]
[348369665,1736475034420,-500.0,9.833e-05,2]
[348369666,1736475034430,-500.0,9.833e-05,2]
[348369667,1736475034442,-500.0,9.833e-05,2]
[348369668,1736475034452,-500.0,9.833e-05,2]
[348369669,1736475034462,-500.0,9.833e-05,2]
[348369670,1736475034471,-500.0,9.833e-05,2]
[348369671,1736475034481,-500.0,9.833e-05,2]
[348369672,1736475034491,-500.0,9.833e-05,2]
[348369673,1736475034501,-500.0,9.833e-05,2]
[348369674,1736475034514,-500.0,9.833e-05,2]
[348369675,1736475034524,-514.23013043,9.833e-05,2]
[348369676,1736475034534,-500.0,9.833e-05,2]
[348369677,1736475034543,-622.99345919,9.833e-05,2]
[348369678,1736475034555,-505.84692207,9.833e-05,2]
[348369679,1736475034565,-500.0,9.833e-05,2]
[348369680,1736475034575,-501.21825371,9.833e-05,2]
[348369681,1736475034586,-500.0,9.833e-05,2]
[348369682,1736475034595,-500.0,9.833e-05,2]
[348369683,1736475034605,-505.77958384,9.833e-05,2]
[348369684,1736475034615,-500.0,9.833e-05,2]
[348369685,1736475034625,-500.0,9.833e-05,2]
[348369686,1736475034635,-500.0,9.833e-05,2]
[348369687,1736475034644,-500.0,9.833e-05,2]
[348369688,1736475034654,-508.03219038,9.833e-05,2]
[348369689,1736475034664,-512.73766969,9.833e-05,2]
[348369690,1736475034674,-500.0,9.833e-05,2]
[348369691,1736475034684,-500.0,9.833e-05,2]
[348369692,1736475034694,-500.0,9.833e-05,2]
[348369693,1736475034704,-500.0,9.833e-05,2]
[348369694,1736475034714,-500.0,9.833e-05,2]
[348369695,1736475034724,-503.41,9.833e-05,2]
[348369696,1736475034735,-506.91834672,9.833e-05,2]
[348369697,1736475034745,-508.83196924,9.833e-05,2]
[348369698,1736475034754,-500.0,9.833e-05,2]
[348369699,1736475034764,-500.0,9.833e-05,2]
[348369700,1736475034773,-996.76,9.833e-05,2]
[348369701,1736475034783,-1016.4,9.833e-05,2]
[348369702,1736475034792,-922.4267111,9.833e-05,2]
[348369703,1736475034802,-1380.57,9.833e-05,2]
[348369704,1736475034811,-1407.19,9.833e-05,2]
[348369705,1736475034820,-4286.72,9.833e-05,2]
[348369706,1736475034829,-2001.85,9.833e-05,2]
[348369707,1736475034839,-1797.36,9.833e-05,2]
[348369708,1736475034849,-1404.07,9.833e-05,2]
[348369709,1736475034858,-2557.41,9.833e-05,2]
[348369710,1736475034868,-769.71,9.834e-05,2]
[348369711,1736475034877,-671.25,9.834e-05,2]
[348369712,1736475034888,-598.56,9.834e-05,2]
[348369713,1736475034898,-814.0,9.834e-05,2]
[348369714,1736475034907,-680.67,9.834e-05,2]
[348369715,1736475034917,-500.0,9.834e-05,2]
[348369716,1736475034928,-556.78,9.834e-05,2]
[348369717,1736475034938,-500.0,9.834e-05,2]
[348369718,1736475034948,-921.78,9.834e-05,2]
[348369719,1736475034958,-629.46,9.834e-05,2]
[348369720,1736475034967,-827.73,9.834e-05,2]
[348369721,1736475034976,-500.0,9.834e-05,2]
[348369722,1736475034986,-1040.12,9.834e-05,2]
[348369723,1736475034996,-500.0,9.834e-05,2]
[348369724,1736475035006,-598.52,9.834e-05,2]
[348369725,1736475035016,-500.0,9.834e-05,2]
[348369726,1736475035040,-515.09440341,9.834e-05,2]
[348369727,1736475035049,-500.0,9.834e-05,2]
[348369728,1736475035058,-500.0,9.834e-05,2]
[348369729,1736475035068,-515.13,9.834e-05,2]
[348369730,1736475035078,-1408.47,9.834e-05,2]
[348369731,1736475035092,-150.99,9.834e-05,2]
[348369732,1736475035102,-500.0,9.834e-05,2]
[348369733,1736475035112,-1000.36,9.834e-05,2]
[348369734,1736475035122,-2397.79,9.834e-05,2]
[348369735,1736475035131,-1158.99,9.834e-05,2]
[348369736,1736475035142,-1158.99,9.834e-05,2]
[348369737,1736475035152,-1087.22,9.834e-05,2]
[348369738,1736475035161,-1623.7,9.834e-05,2]
[348369739,1736475035172,-674.88,9.834e-05,2]
[348369740,1736475035182,-1574.28,9.834e-05,2]
[348369741,1736475035193,-319.12,9.84e-05,2]
[348369742,1736475035203,-2415.3741864,9.952e-05,2]
[348369743,1736475035212,-500.0,9.996e-05,2]
[348369744,1736475035222,-1822.99,9.996e-05,2]
[348369745,1736475035232,-3596.11,9.996e-05,2]
[348369746,1736475035241,-1685.56,9.996e-05,2]
[348369747,1736475035251,-500.0,9.996e-05,2]
[348369748,1736475035261,-1058.84,9.996e-05,2]
[348369749,1736475035271,-555.05,9.996e-05,2]
[348369750,1736475035280,-500.0,9.996e-05,2]
[348369751,1736475035289,-500.0,9.996e-05,2]
[348369752,1736475035299,-1009.65,9.996e-05,2]
[348369753,1736475035309,-567.68,9.996e-05,2]
[348369754,1736475035319,-500.0,9.996e-05,2]
[348369755,1736475035329,-1665.6,9.996e-05,2]
[348369756,1736475035339,-888.01,9.996e-05,2]
[348369757,1736475035348,-1101.94,9.996e-05,2]
[348369758,1736475035358,-839.87,9.996e-05,2]
[348369759,1736475035368,-591.7,9.996e-05,2]
[348369760,1736475035378,-500.0,9.997e-05,2]
[348369761,1736475035388,-500.0,9.997e-05,2]
[348369762,1736475035398,-500.0,9.997e-05,2]
[348369763,1736475035407,-500.0,9.997e-05,2]
[348369764,1736475035417,-500.0,9.997e-05,2]
[348369765,1736475035428,-500.0,9.997e-05,2]
[348369766,1736475035439,-503.10245252,9.997e-05,2]
[348369767,1736475035448,-2879.59,9.997e-05,2]
[348369768,1736475035458,-1278.11,9.997e-05,2]
[348369769,1736475035468,-500.0,9.997e-05,2]
[348369770,1736475035478,-2220.07,9.997e-05,2]
[348369771,1736475035488,-500.0,9.997e-05,2]
[348369772,1736475035497,-500.0,9.997e-05,2]
[348369773,1736475035509,-7577.95,9.997e-05,2]
[348369774,1736475035520,-942.73,9.997e-05,2]
[348369775,1736475035530,-500.0,9.997e-05,2]
[348369776,1736475035539,-500.0,9.997e-05,2]
[348369777,1736475035549,-978.61,9.997e-05,2]
[348369778,1736475035559,-500.0,9.997e-05,2]
[348369779,1736475035568,-1181.29,9.997e-05,2]
[348369780,1736475035580,-500.0,9.997e-05,2]
[348369781,1736475035590,-1048.0,9.997e-05,2]